bitfinex/quotes_SOLUSD_20230113
["timestamp","ask_amount","ask_price","bid_price","bid_amount"]
[1673636777213,20.0,16.761,16.747,20.0]
[1673636777427,20.0,16.761,16.748,17.0]
[1673636777751,44.75,16.76,16.749,20.0]
[1673636778154,44.75,16.76,16.747,20.0]
[1673636779000,44.75,16.762,16.747,20.0]
[1673636779207,44.75,16.762,16.748,17.0]
[1673636779419,44.75,16.762,16.749,20.0]
[1673636779641,44.74,16.764,16.75,33.1]
[1673636779852,44.74,16.764,16.751,20.0]
[1673636780061,44.74,16.765,16.752,17.0]
[1673636780269,118.5055,16.766,16.75,16.1]
[1673636780270,44.75,16.763,16.75,16.1]
[1673636780463,44.74,16.764,16.75,16.1]
[1673636780673,44.75,16.762,16.75,16.1]
[1673636780878,44.75,16.763,16.75,16.1]
[1673636781119,44.74,16.764,16.75,16.1]
[1673636781528,44.74,16.765,16.75,16.1]
[1673636781734,44.74,16.765,16.751,17.0]
[1673636782150,64.74,16.765,16.751,17.0]
[1673636782372,44.74,16.765,16.751,17.0]
[1673636783956,44.74,16.765,16.752,20.0]
[1673636784148,118.5055,16.766,16.753,17.0]
[1673636784358,163.2455,16.766,16.753,17.0]
[1673636784779,44.73,16.771,16.755,20.0]
[1673636784997,44.73,16.771,16.756,37.0]
[1673636785721,44.72,16.772,16.756,37.0]
[1673636786370,17.0,16.771,16.756,37.0]
[1673636786875,44.73,16.77,16.756,37.0]
[1673636792669,44.73,16.771,16.756,37.0]
[1673636793196,44.72,16.772,16.756,37.0]
[1673636793928,64.72,16.772,16.756,37.0]
[1673636795420,64.72,16.772,16.756,17.0]
[1673636795611,17.0,16.771,16.75,16.27]
[1673636795826,20.0,16.769,16.75,16.27]
[1673636796154,37.0,16.768,16.75,16.27]
[1673636796338,81.73,16.768,16.75,16.27]
[1673636796550,20.0,16.766,16.75,16.27]
[1673636796868,113.0807,16.765,16.751,17.0]
[1673636797089,157.8207,16.765,16.751,17.0]
[1673636797920,157.8207,16.765,16.75,16.27]
[1673636798249,37.0,16.764,16.75,16.27]
[1673636798651,44.75,16.763,16.75,16.27]
[1673636799936,44.75,16.763,16.745,173.9232]
[1673636800146,44.75,16.763,16.746,37.0]
[1673636800766,37.0,16.762,16.746,37.0]
[1673636801176,44.75,16.761,16.746,37.0]
[1673636801392,17.0,16.76,16.746,37.0]
[1673636801814,44.75,16.763,16.747,20.0]
[1673636802025,44.75,16.763,16.748,37.0]
[1673636802246,44.74,16.764,16.748,37.0]
[1673636802568,44.75,16.762,16.748,37.0]
[1673636802775,61.75,16.763,16.748,37.0]
[1673636802968,17.0,16.763,16.748,37.0]
[1673636803179,44.75,16.762,16.748,37.0]
[1673636804038,157.8207,16.765,16.75,16.1]
[1673636804224,157.8207,16.765,16.751,17.0]
[1673636804225,113.0807,16.765,16.751,17.0]
[1673636804439,113.0807,16.765,16.751,61.78]
[1673636804966,113.0807,16.765,16.752,20.0]
[1673636805181,113.0807,16.765,16.753,17.0]
[1673636805809,113.0807,16.765,16.752,17.0]
[1673636806750,113.0807,16.765,16.751,17.0]
[1673636809270,113.0807,16.765,16.751,37.0]
[1673636811605,113.0807,16.765,16.752,44.78]
[1673636811815,113.0807,16.765,16.753,17.0]
[1673636812026,113.0807,16.765,16.751,44.78]
[1673636812232,113.0807,16.765,16.752,17.0]
[1673636814352,113.0807,16.765,16.751,37.0]
[1673636820128,44.74,16.764,16.751,37.0]
[1673636821806,113.0807,16.765,16.751,17.0]
[1673636822208,44.74,16.764,16.751,17.0]
[1673636825476,44.74,16.764,16.751,37.0]
[1673636827359,44.73,16.771,16.751,37.0]
[1673636827574,44.73,16.771,16.76,12.13]
[1673636827779,154.3895,16.773,16.76,12.13]
[1673636828198,154.3895,16.773,16.761,17.0]
[1673636829360,109.6695,16.773,16.761,17.0]
[1673636829565,109.6695,16.773,16.762,20.0]
[1673636829881,109.6695,16.773,16.763,17.0]
[1673636831357,109.6695,16.773,16.762,17.0]
[1673636831554,109.6695,16.773,16.761,17.0]
[1673636836512,109.6695,16.773,16.762,20.0]
[1673636836709,109.6695,16.773,16.763,17.0]
[1673636837454,109.6695,16.773,16.762,17.0]
[1673636843541,44.71,16.775,16.762,46.9691928]
[1673636843753,110.7731,16.776,16.764,20.0]
[1673636843965,110.7731,16.776,16.77,12.13]
[1673636844587,44.7,16.779,16.77,12.13]
[1673636844810,44.7,16.779,16.771,17.0]
[1673636845025,113.3071,16.78,16.771,17.0]
[1673636845438,113.3071,16.78,16.771,46.9691928]
[1673636846070,113.3071,16.78,16.771,17.0]
[1673636850388,113.3071,16.78,16.77,12.13]
[1673636850697,44.7,16.779,16.77,12.13]
[1673636850913,17.0,16.778,16.77,12.13]
[1673636851439,44.71,16.777,16.764,29.9691928]
[1673636851646,44.71,16.777,16.765,20.0]
[1673636851862,44.71,16.777,16.762,94.10755631]
[1673636852169,44.71,16.777,16.763,37.0]
[1673636856901,44.71,16.778,16.763,37.0]
[1673636858069,44.71,16.778,16.763,57.0]
[1673636860171,44.71,16.778,16.763,17.0]
[1673636860382,44.71,16.778,16.761,29.9691928]
[1673636860383,37.0,16.777,16.761,29.9691928]
[1673636861011,20.0,16.775,16.761,29.9691928]
[1673636861238,17.0,16.774,16.76,12.08]
[1673636861542,61.72,16.774,16.76,12.08]
[1673636862256,61.72,16.774,16.76,42.0491928]
[1673636862896,61.72,16.774,16.761,17.0]
[1673636866477,61.63418578,16.774,16.761,17.0]
[1673636866896,61.63418578,16.774,16.76,42.0491928]
[1673636869713,44.72,16.774,16.76,42.0491928]
[1673636869929,162.2578,16.776,16.762,20.0]
[1673636870156,162.2578,16.776,16.763,17.0]
[1673636870572,117.5478,16.776,16.764,29.9691928]
[1673636870781,44.7,16.779,16.77,12.04]
[1673636870981,113.3071,16.78,16.77,12.04]
[1673636871214,113.3071,16.78,16.771,17.0]
[1673636871752,113.3071,16.78,16.771,46.9691928]
[1673636872050,113.3071,16.78,16.772,20.0]
[1673636872260,113.3071,16.78,16.773,17.0]
[1673636872469,112.4825,16.785,16.773,46.9691928]
[1673636872867,112.4825,16.785,16.774,29.9691928]
[1673636873094,157.5539,16.788,16.775,20.0]
[1673636873306,112.8739,16.788,16.776,17.0]
[1673636874050,20.0,16.787,16.776,17.0]
[1673636874255,64.68,16.787,16.772,20.0]
[1673636874657,64.68,16.787,16.773,17.0]
[1673636874882,17.0,16.786,16.773,17.0]
[1673636875096,64.68,16.787,16.773,46.9691928]
[1673636875308,64.68,16.787,16.773,17.0]
[1673636875309,44.69,16.785,16.773,17.0]
[1673636875503,61.69,16.786,16.773,17.0]
[1673636876149,119.1561,16.785,16.773,17.0]
[1673636876555,44.69,16.784,16.773,17.0]
[1673636876884,44.69,16.784,16.771,20.0]
[1673636877079,44.69,16.784,16.772,17.0]
[1673636878138,44.69,16.784,16.771,17.0]
[1673636879068,44.69,16.784,16.771,46.9691928]
[1673636880759,119.1561,16.785,16.771,91.6991928]
[1673636880973,119.1561,16.785,16.772,20.0]
[1673636881186,119.1561,16.785,16.773,17.0]
[1673636882119,119.1561,16.785,16.773,46.9691928]
[1673636882330,20.0,16.787,16.773,91.6891928]
[1673636882762,20.0,16.787,16.774,20.0]
[1673636883091,20.0,16.787,16.775,46.9691928]
[1673636883302,112.8739,16.788,16.776,20.0]
[1673636883488,112.8739,16.788,16.777,17.0]
[1673636883827,112.8739,16.788,16.78,12.04]
[1673636884220,112.8739,16.788,16.781,17.0]
[1673636885187,112.8739,16.788,16.778,20.0]
[1673636885382,112.8739,16.788,16.776,20.0]
[1673636885595,112.8739,16.788,16.772,64.72]
[1673636885964,81.68,16.787,16.771,29.9691928]
[1673636886641,64.68,16.787,16.771,29.9691928]
[1673636886971,64.68,16.787,16.772,20.0]
[1673636887181,64.68,16.787,16.773,17.0]
[1673636887915,64.68,16.787,16.773,46.9691928]
[1673636888458,64.68,16.787,16.774,20.0]
[1673636888638,64.68,16.787,16.775,17.0]
[1673636889902,20.0,16.787,16.77,12.01]
[1673636890116,20.0,16.785,16.77,12.01]
[1673636890652,44.69,16.784,16.77,12.01]
[1673636891058,17.0,16.783,16.77,12.01]
[1673636891491,44.7,16.782,16.77,12.01]
[1673636895164,44.7,16.782,16.768,29.9691928]
[1673636895165,44.7,16.782,16.764,6.88288]
[1673636895364,156.052,16.781,16.764,6.88288]
[1673636895583,156.052,16.781,16.76,115.16688584]
[1673636895787,20.0,16.779,16.76,66.64688584]
[1673636896029,37.0,16.778,16.761,29.9691928]
[1673636896206,81.71,16.778,16.761,29.9691928]
[1673636896845,81.71,16.778,16.762,17.0]
[1673636897793,81.71,16.778,16.762,46.9691928]
[1673636900739,20.0,16.777,16.762,46.9691928]
[1673636901075,17.0,16.776,16.762,46.9691928]
[1673636901245,179.351,16.776,16.762,46.9691928]
[1673636901458,134.641,16.776,16.762,46.9691928]
[1673636901674,44.71,16.775,16.762,46.9691928]
[1673636903062,44.71,16.775,16.762,17.0]
[1673636903268,44.71,16.775,16.761,17.0]
[1673636903667,20.0,16.774,16.761,17.0]
[1673636904192,44.72,16.773,16.761,17.0]
[1673636905254,44.72,16.773,16.76,16.1]
[1673636905469,17.0,16.772,16.755,439.86850644]
[1673636905674,37.0,16.772,16.756,20.0]
[1673636905889,44.73,16.771,16.756,20.0]
[1673636906105,17.0,16.77,16.756,20.0]
[1673636907471,17.0,16.77,16.757,17.0]
[1673636907679,17.0,16.77,16.758,20.0]
[1673636908838,17.0,16.771,16.758,20.0]
[1673636909041,44.73,16.771,16.758,20.0]
[1673636909235,17.0,16.77,16.758,20.0]
[1673636909443,17.0,16.772,16.758,20.0]
[1673636909670,44.73,16.771,16.758,20.0]
[1673636909882,17.0,16.77,16.758,20.0]
[1673636911762,44.72,16.773,16.758,20.0]
[1673636911976,154.5256,16.774,16.759,17.0]
[1673636912186,109.8056,16.774,16.76,16.01]
[1673636912419,109.8056,16.774,16.761,17.0]
[1673636912619,109.8056,16.774,16.761,66.9691928]
[1673636912833,109.8056,16.774,16.762,29.9691928]
[1673636913026,109.8056,16.774,16.763,17.0]
[1673636913448,109.8056,16.774,16.764,29.9691928]
[1673636913764,109.8056,16.774,16.765,17.0]
[1673636915776,44.71,16.775,16.765,17.0]
[1673636916087,108.7439,16.782,16.766,64.74]
[1673636916304,108.7439,16.782,16.767,17.0]
[1673636916495,44.7,16.781,16.768,20.0]
[1673636916709,44.7,16.781,16.769,17.0]
[1673636917139,44.7,16.781,16.768,49.9691928]
[1673636918194,17.0,16.78,16.768,49.9691928]
[1673636919252,17.0,16.78,16.768,20.0]
[1673636919457,37.0,16.78,16.766,20.0]
[1673636919776,37.0,16.78,16.765,20.0]
[1673636920490,17.0,16.78,16.765,20.0]
[1673636920805,17.0,16.78,16.766,17.0]
[1673636921015,17.0,16.78,16.767,20.0]
[1673636921248,20.0,16.779,16.764,44.74]
[1673636921557,37.0,16.778,16.762,29.9691928]
[1673636921749,20.0,16.777,16.76,16.22]
[1673636921956,17.0,16.776,16.76,16.22]
[1673636922168,111.0411,16.775,16.76,16.22]
[1673636922381,17.0,16.774,16.76,16.22]
[1673636922804,44.72,16.773,16.76,16.22]
[1673636923639,44.72,16.773,16.761,17.0]
[1673636924080,44.72,16.773,16.761,46.9691928]
[1673636924501,17.0,16.772,16.761,29.9691928]
[1673636925027,17.0,16.772,16.757,44.76]
[1673636925343,37.0,16.772,16.758,20.0]
[1673636925557,44.73,16.771,16.758,20.0]
[1673636925869,17.0,16.77,16.756,20.0]
[1673636926588,37.0,16.77,16.756,20.0]
[1673636926802,44.73,16.769,16.756,20.0]
[1673636927019,17.0,16.768,16.756,20.0]
[1673636927641,17.0,16.768,16.754,92.33850644]
[1673636927642,17.0,16.768,16.755,20.0]
[1673636930910,17.0,16.769,16.755,20.0]
[1673636931131,61.73,16.769,16.755,20.0]
[1673636932806,17.0,16.769,16.755,20.0]
[1673636932995,17.0,16.77,16.756,29.9691928]
[1673636933205,17.0,16.77,16.757,20.0]
[1673636933425,44.73,16.769,16.757,20.0]
[1673636933638,17.0,16.768,16.758,29.9691928]
[1673636933848,17.0,16.768,16.759,20.0]
[1673636934173,17.0,16.768,16.759,49.9691928]
[1673636934788,44.73,16.771,16.759,49.9691928]
[1673636934991,44.72,16.773,16.759,20.0]
[1673636935201,44.72,16.773,16.757,20.0]
[1673636935625,44.72,16.773,16.757,49.9691928]
[1673636936048,44.72,16.773,16.758,44.76]
[1673636936255,17.0,16.772,16.759,37.0]
[1673636936469,17.0,16.773,16.759,37.0]
[1673636936897,44.72,16.772,16.76,29.9691928]
[1673636937412,44.72,16.774,16.761,17.0]
[1673636937836,44.72,16.774,16.761,46.9691928]
[1673636938149,17.0,16.773,16.761,46.9691928]
[1673636938586,44.72,16.772,16.761,46.9691928]
[1673636938989,17.0,16.773,16.761,46.9691928]
[1673636940800,17.0,16.773,16.761,26.9691928]
[1673636941311,17.0,16.773,16.759,20.0]
[1673636942897,17.0,16.773,16.76,17.0]
[1673636943837,17.0,16.773,16.76,33.1]
[1673636944052,155.7511,16.775,16.76,33.1]
[1673636944366,155.7511,16.775,16.761,44.75]
[1673636944584,111.0411,16.775,16.762,20.0]
[1673636944768,111.0411,16.775,16.763,17.0]
[1673636949847,111.0411,16.775,16.762,20.0]
[1673636950058,111.0411,16.775,16.761,20.0]
[1673636951122,17.0,16.774,16.76,12.12]
[1673636951314,61.72,16.774,16.76,12.12]
[1673636951738,20.0,16.773,16.76,12.12]
[1673636951950,17.0,16.772,16.76,12.12]
[1673636952160,61.72,16.772,16.76,12.12]
[1673636952591,20.0,16.771,16.76,12.12]
[1673636952799,17.0,16.77,16.76,12.12]
[1673636953013,61.73,16.77,16.76,12.12]
[1673636953322,61.73,16.77,16.759,20.0]
[1673636953323,61.73,16.77,16.752,44.78]
[1673636953537,20.0,16.769,16.75,160.11939741]
[1673636953752,153.9777,16.768,16.75,115.33939741]
[1673636953941,20.0,16.767,16.75,115.33939741]
[1673636954149,17.0,16.766,16.75,160.11939741]
[1673636954361,61.74,16.766,16.75,160.11939741]
[1673636954906,61.74,16.766,16.75,66.66939741]
[1673636955219,20.0,16.765,16.75,66.66939741]
[1673636955429,215.7,16.764,16.743,44.8]
[1673636955646,290.4091928,16.764,16.742,44.8]
[1673636955831,29.9691928,16.763,16.741,44.81]
[1673636956041,20.0,16.761,16.741,44.81]
[1673636956276,132.8861,16.76,16.741,44.81]
[1673636956478,194.6361,16.76,16.741,44.81]
[1673636957844,194.6361,16.76,16.742,17.0]
[1673636958365,194.6361,16.76,16.741,44.81]
[1673636958571,194.6361,16.76,16.74,206.5164928]
[1673636958790,194.6361,16.76,16.741,44.81]
[1673636959822,194.6361,16.76,16.742,17.0]
[1673636960450,194.6361,16.76,16.74,176.5473]
[1673636960451,20.0,16.759,16.741,17.0]
[1673636960655,37.0,16.758,16.74,12.02]
[1673636960880,200.1496,16.758,16.74,12.02]
[1673636961719,200.1496,16.758,16.74,16.12]
[1673636962044,183.1496,16.758,16.74,16.12]
[1673636962361,183.1496,16.758,16.741,17.0]
[1673636963419,17.0,16.757,16.741,17.0]
[1673636963948,44.77,16.756,16.741,17.0]
[1673636964132,17.0,16.755,16.741,17.0]
[1673636964677,44.77,16.754,16.741,17.0]
[1673636966547,64.76,16.757,16.741,17.0]
[1673636966756,17.0,16.756,16.741,17.0]
[1673636966979,37.0,16.756,16.74,16.12]
[1673636967192,44.77,16.755,16.74,16.12]
[1673636967429,17.0,16.754,16.74,16.12]
[1673636967594,20.0,16.753,16.735,44.82]
[1673636967804,17.0,16.752,16.736,20.0]
[1673636968221,44.78,16.751,16.735,20.0]
[1673636968442,17.0,16.75,16.736,29.9691928]
[1673636968646,17.0,16.75,16.737,20.0]
[1673636968873,44.78,16.752,16.737,20.0]
[1673636969076,44.78,16.75,16.737,49.9691928]
[1673636969282,61.78,16.751,16.737,49.9691928]
[1673636969488,17.0,16.751,16.737,49.9691928]
[1673636969720,17.0,16.751,16.738,17.0]
[1673636970120,44.77,16.753,16.738,17.0]
[1673636970338,44.77,16.753,16.74,16.2]
[1673636970551,44.77,16.756,16.741,17.0]
[1673636970759,44.76,16.757,16.741,91.7791928]
[1673636970968,44.76,16.757,16.742,49.9691928]
[1673636971202,44.76,16.759,16.743,17.0]
[1673636971421,44.76,16.759,16.75,16.06]
[1673636971732,112.8861,16.76,16.75,16.06]
[1673636982539,112.8861,16.76,16.743,61.8]
[1673636982540,64.76,16.759,16.743,61.8]
[1673636982747,20.0,16.758,16.743,61.8]
[1673636983092,133.3199,16.758,16.743,61.8]
[1673636983395,112.8861,16.76,16.75,16.1]
[1673636986947,17.0,16.759,16.75,16.1]
[1673636987173,61.76,16.759,16.745,20.0]
[1673636987386,61.76,16.759,16.746,20.0]
[1673636989368,61.76,16.759,16.745,20.0]
[1673636989577,61.76,16.759,16.746,17.0]
[1673636989801,61.76,16.759,16.747,20.0]
[1673636996247,44.76,16.759,16.747,20.0]
[1673636996456,112.8861,16.76,16.748,17.0]
[1673636997317,157.6361,16.76,16.748,17.0]
[1673636997505,112.8861,16.76,16.748,17.0]
[1673636999065,44.76,16.759,16.748,17.0]
[1673637001912,44.76,16.759,16.747,20.0]
[1673637002336,44.76,16.759,16.75,16.08]
[1673637002550,112.8861,16.76,16.75,16.08]
[1673637003267,112.8861,16.76,16.751,17.0]
[1673637003484,112.8861,16.76,16.75,16.08]
[1673637004534,157.6361,16.76,16.75,16.08]
[1673637005781,20.0,16.759,16.743,20.0]
[1673637006004,37.0,16.759,16.741,20.0]
[1673637006224,44.76,16.758,16.741,20.0]
[1673637006538,37.0,16.757,16.741,20.0]
[1673637006942,44.77,16.756,16.741,20.0]
[1673637007152,17.0,16.755,16.741,20.0]
[1673637007467,17.0,16.755,16.74,198.1561]
[1673637007798,44.77,16.754,16.74,198.1561]
[1673637008203,44.77,16.754,16.741,37.0]
[1673637008622,44.77,16.756,16.741,37.0]
[1673637009575,44.77,16.756,16.742,20.0]
[1673637009790,44.77,16.756,16.743,17.0]
[1673637009996,64.76,16.757,16.743,17.0]
[1673637010318,64.76,16.757,16.74,129.3861]
[1673637010319,44.77,16.755,16.74,129.3861]
[1673637010632,44.77,16.756,16.74,129.3861]
[1673637010846,44.77,16.754,16.74,129.3861]
[1673637011057,44.77,16.756,16.74,129.3861]
[1673637011269,44.77,16.753,16.74,129.3861]
[1673637011450,61.77,16.755,16.74,129.3861]
[1673637011661,20.0,16.754,16.74,129.3861]
[1673637011881,17.0,16.753,16.74,129.3861]
[1673637012090,17.0,16.753,16.74,12.18]
[1673637012311,44.78,16.752,16.74,12.18]
[1673637012539,37.0,16.751,16.74,12.18]
[1673637012835,44.78,16.752,16.74,12.18]
[1673637013149,44.77,16.755,16.74,12.18]
[1673637013367,17.0,16.754,16.74,12.18]
[1673637013771,44.77,16.753,16.74,12.18]
[1673637014510,44.77,16.753,16.741,17.0]
[1673637015052,44.77,16.755,16.741,17.0]
[1673637015676,44.77,16.756,16.741,17.0]
[1673637015888,44.77,16.754,16.74,12.18]
[1673637016085,17.0,16.753,16.74,12.18]
[1673637016298,17.0,16.755,16.74,12.18]
[1673637016509,44.77,16.754,16.741,17.0]
[1673637018287,42.27,16.754,16.741,17.0]
[1673637019466,112.8861,16.76,16.742,84.8]
[1673637019680,112.8861,16.76,16.743,17.0]
[1673637019988,112.8861,16.76,16.745,20.0]
[1673637020204,112.8861,16.76,16.746,20.0]
[1673637020392,112.8861,16.76,16.747,17.0]
[1673637020605,20.0,16.759,16.745,44.79]
[1673637020818,17.0,16.758,16.742,44.8]
[1673637021029,17.0,16.758,16.743,17.0]
[1673637021030,20.0,16.757,16.743,17.0]
[1673637021352,20.0,16.757,16.741,6.89233]
[1673637021353,64.76,16.757,16.742,17.0]
[1673637021773,17.0,16.756,16.742,17.0]
[1673637021974,17.0,16.756,16.741,17.0]
[1673637022190,44.77,16.755,16.741,17.0]
[1673637025128,64.76,16.757,16.741,17.0]
[1673637025341,20.0,16.757,16.743,20.0]
[1673637025545,64.76,16.757,16.744,17.0]
[1673637028813,64.76,16.757,16.743,17.0]
[1673637029007,64.76,16.757,16.742,64.8]
[1673637029008,17.0,16.756,16.741,44.81]
[1673637029220,17.0,16.756,16.74,174.5089]
[1673637029430,44.77,16.755,16.741,17.0]
[1673637029639,17.0,16.754,16.741,17.0]
[1673637030185,44.77,16.753,16.741,17.0]
[1673637031344,44.77,16.756,16.741,17.0]
[1673637031528,17.0,16.755,16.741,17.0]
[1673637031949,44.77,16.754,16.741,37.0]
[1673637032493,44.77,16.754,16.741,17.0]
[1673637035437,44.77,16.754,16.74,174.5089]
[1673637035752,158.6054,16.754,16.741,17.0]
[1673637036994,113.8354,16.754,16.742,20.0]
[1673637037205,113.8354,16.754,16.743,17.0]
[1673637039850,113.8354,16.754,16.74,174.5089]
[1673637040069,44.77,16.753,16.741,17.0]
[1673637040250,113.8354,16.754,16.741,17.0]
[1673637040672,113.8354,16.754,16.74,174.5089]
[1673637040982,61.77,16.753,16.74,12.18]
[1673637041623,44.77,16.753,16.74,12.18]
[1673637041832,113.8354,16.754,16.74,60.86]
[1673637042453,44.77,16.753,16.74,60.86]
[1673637042673,44.77,16.753,16.741,17.0]
[1673637043111,44.77,16.753,16.74,60.86]
[1673637043419,17.0,16.752,16.74,12.26]
[1673637043851,44.78,16.751,16.74,12.26]
[1673637044366,44.78,16.751,16.741,17.0]
[1673637044570,44.78,16.751,16.74,12.26]
[1673637044776,113.8354,16.754,16.741,17.0]
[1673637044980,44.77,16.753,16.74,61.01]
[1673637045825,17.0,16.752,16.74,61.01]
[1673637046040,44.77,16.753,16.74,61.01]
[1673637046233,113.8354,16.754,16.741,17.0]
[1673637046679,113.8354,16.754,16.741,61.81]
[1673637046988,20.0,16.757,16.743,20.0]
[1673637047208,64.76,16.757,16.743,20.0]
[1673637047520,64.76,16.757,16.741,61.81]
[1673637047922,64.76,16.757,16.741,17.0]
[1673637048127,17.0,16.756,16.741,17.0]
[1673637048341,135.6592,16.756,16.741,61.81]
[1673637048972,44.77,16.755,16.741,61.81]
[1673637049186,44.77,16.755,16.741,17.0]
[1673637049390,118.6592,16.756,16.742,20.0]
[1673637049932,118.6592,16.756,16.743,17.0]
[1673637055946,44.77,16.755,16.743,17.0]
[1673637056962,163.4292,16.756,16.743,17.0]
[1673637058133,163.4292,16.756,16.74,61.01]
[1673637058349,163.4292,16.756,16.74,178.5416]
[1673637059394,163.4292,16.756,16.741,17.0]
[1673637061074,20.0,16.754,16.74,178.5416]
[1673637061284,17.0,16.753,16.74,12.18]
[1673637061609,61.77,16.753,16.74,12.18]
[1673637062337,44.77,16.753,16.741,17.0]
[1673637062534,44.77,16.755,16.741,17.0]
[1673637064545,44.77,16.755,16.742,20.0]
[1673637064738,44.77,16.755,16.743,17.0]
[1673637066131,118.6592,16.756,16.743,17.0]
[1673637066533,118.6592,16.756,16.75,12.15]
[1673637067069,44.76,16.757,16.75,12.15]
[1673637067384,164.0783,16.764,16.75,12.15]
[1673637067792,20.0,16.763,16.75,12.15]
[1673637068212,20.0,16.761,16.75,12.15]
[1673637068415,17.0,16.76,16.742,412.3]
[1673637068631,61.75,16.76,16.743,20.0]
[1673637070834,61.75,16.76,16.743,64.8]
[1673637071044,61.75,16.76,16.743,20.0]
[1673637071583,61.75,16.76,16.744,17.0]
[1673637071785,61.75,16.76,16.74,122.9186]
[1673637071786,20.0,16.758,16.74,122.9186]
[1673637072204,81.76,16.757,16.74,122.9186]
[1673637073256,116.9475,16.756,16.74,122.9186]
[1673637073473,17.0,16.755,16.74,122.9186]
[1673637073682,61.77,16.755,16.74,122.9186]
[1673637076531,61.77,16.755,16.74,12.18]
[1673637076724,20.0,16.754,16.74,12.18]
[1673637076935,17.0,16.753,16.74,12.18]
[1673637077162,61.77,16.753,16.74,12.18]
[1673637079051,44.77,16.753,16.74,12.18]
[1673637079374,44.77,16.754,16.741,17.0]
[1673637079557,44.77,16.755,16.741,17.0]
[1673637079768,44.77,16.753,16.741,17.0]
[1673637079979,44.77,16.754,16.741,17.0]
[1673637080189,44.77,16.755,16.741,17.0]
[1673637080530,44.77,16.753,16.741,17.0]
[1673637080749,61.77,16.754,16.741,17.0]
[1673637081054,44.78,16.752,16.741,17.0]
[1673637081247,44.77,16.753,16.741,17.0]
[1673637081682,44.77,16.755,16.741,17.0]
[1673637082714,17.0,16.754,16.741,17.0]
[1673637082926,17.0,16.754,16.74,128.0566]
[1673637083146,44.77,16.753,16.74,128.0566]
[1673637083357,17.0,16.752,16.74,128.0566]